[Event "GER-ch Youth-ODJM 2022 B"]
[Site "Willingen"]
[Date "2022.06.08"]
[Round "6.8"]
[White "Ruddat, Jarne"]
[Black "Hofmann, Benjamin"]
[Result "1-0"]
[ECO "C45"]
[WhiteElo "1415"]
[BlackElo "1483"]
[Annotator "NA RC COMBH"]
[PlyCount "121"]
[EventDate "2022.06.05"]
[EventType "swiss"]
[EventRounds "9"]
[EventCountry "GER"]
[SourceTitle "playchess.com"]
[Source "ChessBase"]
[SourceQuality "1"]
[TimeControl "40/4500+30:900+30"]

1. e4 {[%emt 0:00:00]} e5 {[%emt 0:00:00]} 2. Nf3 {[%emt 0:00:00]} Nc6 {[%emt 0:00:00]} 3. d4 {[%emt 0:00:00]} exd4 {[%emt 0:00:00]} 4. Nxd4 {[%emt 0:00:00]} Bc5 {[%emt 0:00:00]} 5. Nb3 {[%emt 0:00:00]} Bb6 {[%emt 0:00:00]} 6. Nc3 {[%emt 0:00:00]} d6 {[%emt 0:00:00]} 7. Qe2 {[%emt 0:00:00]} Nf6 {[%emt 0:00:00]} 8. Be3 {[%emt 0:00:00]} Qe7 {[%emt 0:00:00]} 9. f3 {[%emt 0:00:00]} Be6 {[%emt 0:00:00]} 10. g3 {[%emt 0:00:00]} O-O {[%emt 0:00:00]} 11. O-O-O {[%emt 0:00:00]} Rfd8 {[%emt 0:00:15]} 12. h4 {[%emt 0:00:00]} a5 {[%emt 0:02:29]} 13. g4 {[%emt 0:00:00]} Bxe3+ {[%emt 0:02:41]} 14. Qxe3 {[%emt 0:00:00]} Ne5 {[%emt 0:01:35]} 15. h5 {[%emt 0:00:00]} Nc4 {[%emt 0:08:20]} 16. Bxc4 {[%emt 0:00:00]} Bxc4 {[%emt 0:00:08]} 17. g5 {[%emt 0:00:00]} Ne8 {[%emt 0:00:49]} 18. f4 {[%emt 0:01:50]} f5 {[%emt 0:01:55]} 19. gxf6 {[%emt 0:01:20]} Nxf6 {[%emt 0:00:35]} 20. Nd4 {[%emt 0:01:03]} Nd5 {[%emt 0:05:29]} 21. Nxd5 {[%emt 0:00:13]} Bxd5 {[%emt 0:00:10]} 22. Nf5 {[%emt 0:00:07]} Qxe4 {[%emt 0:00:45]} 23. Ne7+ {[%emt 0:00:05]} Kf7 {[%emt 0:01:00]} 24. Nxd5 {[%emt 0:00:06]} Qxe3+ {[%emt 0:00:10]} 25. Nxe3 {[%emt 0:00:05]} Re8 {[%emt 0:00:09]} 26. Nd5 {[%emt 0:00:28]} Rec8 {[%emt 0:02:40]} 27. Rde1 {[%emt 0:00:34]} Ra6 {[%emt 0:00:31]} 28. Re7+ {[%emt 0:00:11]} Kf8 {[%emt 0:00:15]} 29. Rxc7 {[%emt 0:00:33]} Rxc7 {[%emt 0:00:19]} 30. Nxc7 {[%emt 0:00:07]} Rc6 {[%emt 0:00:06]} 31. Ne6+ {[%emt 0:00:08]} Ke7 {[%emt 0:00:50]} 32. Nxg7 {[%emt 0:00:24]} Rc4 {[%emt 0:00:14]} 33. Nf5+ {[%emt 0:00:47]} Ke6 {[%emt 0:00:27]} 34. Ne3 {[%emt 0:00:38]} Rxf4 {[%emt 0:00:16]} 35. b3 {[%emt 0:00:22]} d5 {[%emt 0:00:33]} 36. Re1 {[%emt 0:00:15]} Rf3 {[%emt 0:00:32]} 37. Nc4+ {[%emt 0:00:33]} Kf6 {[%emt 0:00:36]} 38. Nxa5 {[%emt 0:00:10]} b5 {[%emt 0:00:22]} 39. Nc6 {[%emt 0:00:28]} Rh3 {[%emt 0:00:50]} 40. a4 {[%emt 0:01:13]} bxa4 {[%emt 0:00:20]} 41. bxa4 {[%emt 0:15:04]} Rc3 {[%emt 0:15:25]} 42. Nb4 {[%emt 0:01:01]} Rc5 {[%emt 0:00:48]} 43. Rd1 {[%emt 0:02:08]} Ra5 {[%emt 0:02:56]} 44. Nxd5+ {[%emt 0:00:20]} Kg5 {[%emt 0:00:19]} 45. Nb6 {[%emt 0:00:07]} Ra6 {[%emt 0:00:25]} 46. Rd5+ {[%emt 0:00:10]} Kg4 {[%emt 0:00:26]} 47. Kb2 {[%emt 0:00:10]} Rxb6+ {[%emt 0:00:14]} 48. Ka3 {[%emt 0:00:02]} Rc6 {[%emt 0:00:20]} 49. Kb3 {[%emt 0:00:19]} Kf4 {[%emt 0:00:16]} 50. c4 {[%emt 0:00:17]} Ke4 {[%emt 0:00:12]} 51. Kb4 {[%emt 0:00:31]} Rb6+ {[%emt 0:00:25]} 52. Rb5 {[%emt 0:00:09]} Rc6 {[%emt 0:00:07]} 53. a5 {[%emt 0:00:18]} Kd4 {[%emt 0:00:17]} 54. c5 {[%emt 0:00:18]} Rf6 {[%emt 0:00:33]} 55. Rb6 {[%emt 0:00:15]} Rf5 {[%emt 0:00:18]} 56. a6 {[%emt 0:00:11]} Rf1 {[%emt 0:00:14]} 57. Kb5 {[%emt 0:00:13]} Rb1+ {[%emt 0:00:24]} 58. Kc6 {[%emt 0:00:10]} Ra1 {[%emt 0:00:28]} 59. Kb7 {[%emt 0:00:58]} Kxc5 {[%emt 0:00:11]} 60. a7 {[%emt 0:00:16]} Ra5 {[%emt 0:00:22]} 61. Ra6 {[%emt 0:00:25]} 1-0

[Event "GER-ch Youth-ODJM 2022 B"]
[Site "Willingen"]
[Date "2022.06.08"]
[Round "6.9"]
[White "Tornay, Aritz"]
[Black "Andrade, Ruben"]
[Result "1-0"]
[ECO "A10"]
[WhiteElo "1765"]
[BlackElo "1694"]
[Annotator "NA RC COMBH"]
[PlyCount "52"]
[EventDate "2022.06.05"]
[EventType "swiss"]
[EventRounds "9"]
[EventCountry "GER"]
[SourceTitle "playchess.com"]
[Source "ChessBase"]
[SourceQuality "1"]
[TimeControl "40/4500+30:900+30"]

1. c4 {[%emt 0:00:00]} f5 {[%emt 0:00:00]} 2. g3 {[%emt 0:00:00]} Nf6 {[%emt 0:00:00]} 3. Bg2 {[%emt 0:00:00]} g6 {[%emt 0:00:00]} 4. Nc3 {[%emt 0:00:00]} Bg7 {[%emt 0:00:00]} 5. d3 {[%emt 0:00:00]} O-O {[%emt 0:00:00]} 6. e4 {[%emt 0:00:00]} fxe4 {[%emt 0:00:00]} 7. dxe4 {[%emt 0:00:00]} e5 {[%emt 0:00:00]} 8. Nge2 {[%emt 0:00:00]} d6 {[%emt 0:04:28]} 9. O-O {[%emt 0:00:00]} Be6 {[%emt 0:00:55]} 10. Nd5 {[%emt 0:00:00]} c5 {[%emt 0:05:00]} 11. Bg5 {[%emt 0:00:00]} h6 {[%emt 0:02:32]} 12. Nxf6+ {[%emt 0:00:00]} Bxf6 {[%emt 0:00:07]} 13. Bxh6 {[%emt 0:00:34]} Rf7 {[%emt 0:00:20]} 14. Qd3 {[%emt 0:06:44]} Rh7 {[%emt 0:12:19]} 15. Bd2 {[%emt 0:06:52]} Qe7 {[%emt 0:05:11]} 16. f4 {[%emt 0:06:14]} Bh3 {[%emt 0:01:18]} 17. fxe5 {[%emt 0:00:51]} dxe5 {[%emt 0:00:27]} 18. Bxh3 {[%emt 0:02:56]} Rxh3 {[%emt 0:00:08]} 19. Qf3 {[%emt 0:00:29]} Nd7 {[%emt 0:02:08]} 20. Qg4 {[%emt 0:12:02]} Qh7 {[%emt 0:02:22]} 21. Rf2 {[%emt 0:00:15]} Re8 {[%emt 0:05:33]} 22. Raf1 {[%emt 0:01:38]} Kh8 {[%emt 0:07:08]} 23. Nc3 {[%emt 0:03:46]} Rd8 {[%emt 0:06:52]} 24. Nd5 {[%emt 0:04:36]} Qh5 {[%emt 0:04:47]} 25. Qe6 {[%emt 0:14:37]} Bg7 {[%emt 0:00:49]} 26. Qe7 {[%emt 0:00:17]} Nb8 1-0

[Event "GER-ch Youth-ODJM 2022 B"]
[Site "Willingen"]
[Date "2022.06.08"]
[Round "6.10"]
[White "Vollbehr, Bjarne"]
[Black "Abou Wally, Adrian"]
[Result "0-1"]
[ECO "E81"]
[WhiteElo "1634"]
[BlackElo "1601"]
[Annotator "NA RC COMBH"]
[PlyCount "54"]
[EventDate "2022.06.05"]
[EventType "swiss"]
[EventRounds "9"]
[EventCountry "GER"]
[SourceTitle "playchess.com"]
[Source "ChessBase"]
[SourceQuality "1"]
[TimeControl "40/4500+30:900+30"]

1. d4 {[%emt 0:00:00]} Nf6 {[%emt 0:00:00]} 2. c4 {[%emt 0:00:00]} g6 {[%emt 0:00:00]} 3. Nc3 {[%emt 0:00:00]} Bg7 {[%emt 0:00:00]} 4. e4 {[%emt 0:00:00]} d6 {[%emt 0:00:00]} 5. f3 {[%emt 0:00:00]} O-O {[%emt 0:00:00]} 6. Be3 {[%emt 0:00:00]} Nbd7 {[%emt 0:00:00]} 7. Qd2 {[%emt 0:00:00]} a6 {[%emt 0:00:00]} 8. Nge2 {[%emt 0:00:00]} b5 {[%emt 0:00:00]} 9. cxb5 {[%emt 0:00:00]} axb5 {[%emt 0:00:00]} 10. Nxb5 {[%emt 0:00:00]} c6 {[%emt 0:00:00]} 11. Nbc3 {[%emt 0:00:00]} e5 {[%emt 0:00:00]} 12. dxe5 {[%emt 0:00:00]} Nxe5 {[%emt 0:00:00]} 13. Nd4 {[%emt 0:00:00]} d5 {[%emt 0:00:00]} 14. exd5 {[%emt 0:03:44]} Nxd5 {[%emt 0:00:00]} 15. Nxd5 {[%emt 0:01:52]} Qxd5 {[%emt 0:00:00]} 16. Nb3 {[%emt 0:01:01]} Qe6 {[%emt 0:06:17]} 17. Nc5 {[%emt 0:03:25]} Qe7 {[%emt 0:03:06]} 18. Ne4 {[%emt 0:03:48]} Rd8 {[%emt 0:06:07]} 19. Bc5 {[%emt 0:05:37]} Rxd2 {[%emt 0:33:20]} 20. Bxe7 {[%emt 0:00:13]} Rxb2 {[%emt 0:09:28]} 21. Nf6+ {[%emt 0:00:22]} Kh8 {[%emt 0:03:41]} 22. O-O-O {[%emt 0:00:22]} Nd7 {[%emt 0:14:14]} 23. Nxd7 {[%emt 0:02:16]} Raxa2 {[%emt 0:01:46]} 24. Nf6 {[%emt 0:05:31]} Bh6+ {[%emt 0:00:41]} 25. Rd2 {[%emt 0:01:08]} Rxd2 {[%emt 0:02:34]} 26. Bd3 {[%emt 0:02:27]} Rxd3+ {[%emt 0:00:05]} 27. Kb1 {[%emt 0:00:13]} Rdd2 {[%emt 0:00:14]} 0-1

[Event "GER-ch Youth-ODJM 2022 B"]
[Site "Willingen"]
[Date "2022.06.08"]
[Round "6.11"]
[White "von Jan, Lena"]
[Black "Paqarizi, Endrit"]
[Result "1-0"]
[ECO "B44"]
[WhiteElo "1634"]
[BlackElo "1380"]
[Annotator "NA RC COMBH"]
[PlyCount "57"]
[EventDate "2022.06.05"]
[EventType "swiss"]
[EventRounds "9"]
[EventCountry "GER"]
[SourceTitle "playchess.com"]
[Source "ChessBase"]
[SourceQuality "1"]
[TimeControl "40/4500+30:900+30"]

1. e4 {[%emt 0:00:00]} c5 {[%emt 0:00:00]} 2. Nf3 {[%emt 0:00:00]} e6 {[%emt 0:00:00]} 3. d4 {[%emt 0:00:00]} cxd4 {[%emt 0:00:00]} 4. Nxd4 {[%emt 0:00:00]} Nc6 {[%emt 0:00:00]} 5. c4 {[%emt 0:00:00]} Qc7 {[%emt 0:00:00]} 6. Nc3 {[%emt 0:00:00]} a6 {[%emt 0:00:00]} 7. Be3 {[%emt 0:00:00]} b6 {[%emt 0:00:00]} 8. Be2 {[%emt 0:00:00]} Bb7 {[%emt 0:00:00]} 9. O-O {[%emt 0:00:00]} Nf6 {[%emt 0:00:00]} 10. f3 {[%emt 0:00:00]} Bc5 {[%emt 0:00:00]} 11. Na4 {[%emt 0:02:27]} O-O {[%emt 0:11:28]} 12. Nxc5 {[%emt 0:02:51]} bxc5 {[%emt 0:00:08]} 13. Nb3 {[%emt 0:00:18]} d6 {[%emt 0:00:18]} 14. Qd2 {[%emt 0:06:01]} h6 {[%emt 0:04:09]} 15. Rfd1 {[%emt 0:03:21]} Rfd8 {[%emt 0:00:56]} 16. Qc3 {[%emt 0:06:50]} a5 {[%emt 0:01:11]} 17. Bxh6 {[%emt 0:09:23]} a4 {[%emt 0:03:43]} 18. Nc1 {[%emt 0:01:01]} Nd4 {[%emt 0:07:20]} 19. Be3 {[%emt 0:03:57]} e5 {[%emt 0:00:40]} 20. Bf1 {[%emt 0:03:06]} Bc6 {[%emt 0:01:00]} 21. Ne2 {[%emt 0:04:53]} Rdb8 {[%emt 0:03:12]} 22. Rab1 {[%emt 0:03:09]} Rb7 {[%emt 0:02:16]} 23. Bf2 {[%emt 0:05:29]} Rab8 {[%emt 0:02:01]} 24. Ng3 {[%emt 0:03:51]} Qb6 {[%emt 0:12:38]} 25. Rd2 {[%emt 0:02:09]} Qb4 {[%emt 0:02:06]} 26. Qxb4 {[%emt 0:02:51]} Rxb4 {[%emt 0:00:44]} 27. Bxd4 {[%emt 0:02:38]} cxd4 {[%emt 0:00:18]} 28. Nf5 {[%emt 0:02:38]} Ne8 {[%emt 0:00:18]} 29. Ne7+ {[%emt 0:00:10]} 1-0

[Event "GER-ch Youth-ODJM 2022 B"]
[Site "Willingen"]
[Date "2022.06.08"]
[Round "6.12"]
[White "Morio, Estelle"]
[Black "Fellberg, Justus"]
[Result "1-0"]
[ECO "A02"]
[WhiteElo "1823"]
[BlackElo "1262"]
[Annotator "NA RC COMBH"]
[PlyCount "87"]
[EventDate "2022.06.05"]
[EventType "swiss"]
[EventRounds "9"]
[EventCountry "GER"]
[SourceTitle "playchess.com"]
[Source "ChessBase"]
[SourceQuality "1"]
[TimeControl "40/4500+30:900+30"]

1. f4 {[%emt 0:00:00]} e5 {[%emt 0:00:00]} 2. fxe5 {[%emt 0:00:00]} d6 {[%emt 0:00:00]} 3. Nf3 {[%emt 0:00:00]} dxe5 {[%emt 0:00:00]} 4. e4 {[%emt 0:00:00]} Nf6 {[%emt 0:00:00]} 5. c3 {[%emt 0:00:00]} Bg4 {[%emt 0:00:00]} 6. Be2 {[%emt 0:00:00]} Nc6 {[%emt 0:00:00]} 7. d3 {[%emt 0:00:00]} Bc5 {[%emt 0:00:00]} 8. b4 {[%emt 0:09:57]} Bb6 {[%emt 0:02:53]} 9. b5 {[%emt 0:08:04]} Bxf3 {[%emt 0:00:31]} 10. Bxf3 {[%emt 0:04:42]} Ne7 {[%emt 0:00:54]} 11. Qe2 {[%emt 0:03:33]} O-O {[%emt 0:01:31]} 12. Be3 {[%emt 0:00:35]} Qd6 {[%emt 0:01:19]} 13. O-O {[%emt 0:02:01]} Ng6 {[%emt 0:00:40]} 14. g3 {[%emt 0:00:45]} Rad8 {[%emt 0:03:05]} 15. Rd1 {[%emt 0:00:43]} Rd7 {[%emt 0:00:57]} 16. a4 {[%emt 0:04:54]} Bxe3+ {[%emt 0:03:53]} 17. Qxe3 {[%emt 0:00:09]} Qb6 {[%emt 0:07:16]} 18. Qxb6 {[%emt 0:04:39]} axb6 {[%emt 0:04:35]} 19. Na3 {[%emt 0:01:54]} Rfd8 {[%emt 0:03:06]} 20. Be2 {[%emt 0:00:38]} Kf8 {[%emt 0:03:40]} 21. Nc4 {[%emt 0:02:14]} Ne8 {[%emt 0:07:05]} 22. a5 {[%emt 0:04:42]} bxa5 {[%emt 0:02:23]} 23. Nxa5 {[%emt 0:01:57]} Nd6 {[%emt 0:01:15]} 24. c4 {[%emt 0:01:35]} b6 {[%emt 0:00:25]} 25. Nc6 {[%emt 0:00:19]} Rc8 {[%emt 0:00:14]} 26. Bg4 {[%emt 0:01:01]} Rdd8 {[%emt 0:02:44]} 27. Bxc8 {[%emt 0:01:03]} Rxc8 {[%emt 0:00:02]} 28. Ra7 {[%emt 0:01:33]} Ke8 {[%emt 0:01:06]} 29. Rda1 {[%emt 0:01:10]} f6 {[%emt 0:00:39]} 30. Ra8 {[%emt 0:02:58]} Kd7 {[%emt 0:00:05]} 31. Kf2 {[%emt 0:08:13]} Nf8 {[%emt 0:01:54]} 32. Rxc8 {[%emt 0:03:57]} Nxc8 {[%emt 0:00:43]} 33. Ra8 {[%emt 0:02:28]} Ng6 {[%emt 0:00:56]} 34. Kf3 {[%emt 0:01:33]} h5 {[%emt 0:00:44]} 35. Ra1 {[%emt 0:04:02]} Nd6 {[%emt 0:00:49]} 36. Rd1 {[%emt 0:01:08]} Ke6 {[%emt 0:00:52]} 37. Nb4 {[%emt 0:01:07]} Ne7 {[%emt 0:00:36]} 38. Ra1 {[%emt 0:00:11]} Kd7 {[%emt 0:00:17]} 39. Ra7 {[%emt 0:05:17]} Nf7 {[%emt 0:00:39]} 40. Ke3 {[%emt 0:02:18]} Nd8 {[%emt 0:00:40]} 41. Ra8 {[%emt 0:16:07]} Nc8 {[%emt 0:15:43]} 42. Nd5 {[%emt 0:00:00]} Ne6 {[%emt 0:00:00]} 43. Nb4 {[%emt 0:00:00]} g5 {[%emt 0:00:00]} 44. Ra1 {[%emt 0:00:00]} 1-0

[Event "GER-ch Youth-ODJM 2022 B"]
[Site "Willingen"]
[Date "2022.06.09"]
[Round "7.1"]
[White "Türel, Tugrul"]
[Black "Maul, Maik Joel"]
[Result "1-0"]
[ECO "B40"]
[WhiteElo "1206"]
[BlackElo "1532"]
[Annotator "NA RC COMBH"]
[PlyCount "59"]
[EventDate "2022.06.05"]
[EventType "swiss"]
[EventRounds "9"]
[EventCountry "GER"]
[SourceTitle "playchess.com"]
[Source "ChessBase"]
[SourceQuality "1"]
[TimeControl "40/4500+30:900+30"]

1. e4 {[%emt 0:00:00]} c5 {[%emt 0:00:00]} 2. Nf3 {[%emt 0:00:00]} e6 {[%emt 0:00:00]} 3. c4 {[%emt 0:00:00]} Nc6 {[%emt 0:00:00]} 4. a3 {[%emt 0:00:00]} Qc7 {[%emt 0:00:00]} 5. d4 {[%emt 0:00:00]} cxd4 {[%emt 0:00:00]} 6. Nxd4 {[%emt 0:00:00]} a6 {[%emt 0:00:00]} 7. Nc3 {[%emt 0:00:00]} b6 {[%emt 0:00:00]} 8. Be2 {[%emt 0:00:00]} Bb7 {[%emt 0:00:00]} 9. Be3 {[%emt 0:00:00]} Nf6 {[%emt 0:00:00]} 10. Qd2 {[%emt 0:00:00]} Rd8 {[%emt 0:00:00]} 11. Rd1 {[%emt 0:00:00]} Be7 {[%emt 0:00:00]} 12. O-O {[%emt 0:00:00]} O-O {[%emt 0:02:12]} 13. Qc2 {[%emt 0:01:08]} d5 {[%emt 0:05:10]} 14. Nxc6 {[%emt 0:10:14]} Qxc6 {[%emt 0:03:59]} 15. cxd5 {[%emt 0:01:02]} exd5 {[%emt 0:02:42]} 16. exd5 {[%emt 0:00:06]} Nxd5 {[%emt 0:02:11]} 17. Bf3 {[%emt 0:00:10]} Qc7 {[%emt 0:05:41]} 18. Bxd5 {[%emt 0:02:44]} Bxd5 {[%emt 0:00:33]} 19. Bxb6 {[%emt 0:00:16]} Qc6 {[%emt 0:02:08]} 20. Bxd8 {[%emt 0:00:56]} Rxd8 {[%emt 0:01:09]} 21. Qe2 {[%emt 0:04:21]} Be6 {[%emt 0:05:13]} 22. Rxd8+ {[%emt 0:00:59]} Bxd8 {[%emt 0:00:04]} 23. Rd1 {[%emt 0:00:16]} Bc7 {[%emt 0:03:53]} 24. Qe4 {[%emt 0:00:47]} Qe8 {[%emt 0:02:21]} 25. Qb7 {[%emt 0:03:38]} Bg4 {[%emt 0:06:42]} 26. f3 {[%emt 0:02:11]} Bxh2+ {[%emt 0:02:39]} 27. Kxh2 {[%emt 0:00:08]} Qe5+ {[%emt 0:00:05]} 28. Kg1 {[%emt 0:00:10]} Qc5+ {[%emt 0:01:05]} 29. Kf1 {[%emt 0:00:06]} Qc4+ {[%emt 0:01:05]} 30. Ne2 {[%emt 0:00:05]} 1-0

[Event "GER-ch Youth-ODJM 2022 B"]
[Site "Willingen"]
[Date "2022.06.09"]
[Round "7.2"]
[White "Kalina, Lena"]
[Black "Günther, Arthur"]
[Result "1/2-1/2"]
[ECO "A85"]
[WhiteElo "1735"]
[BlackElo "1579"]
[Annotator "NA RC COMBH"]
[PlyCount "66"]
[EventDate "2022.06.05"]
[EventType "swiss"]
[EventRounds "9"]
[EventCountry "GER"]
[SourceTitle "playchess.com"]
[Source "ChessBase"]
[SourceQuality "1"]
[TimeControl "40/4500+30:900+30"]

1. d4 {[%emt 0:00:00]} f5 {[%emt 0:00:00]} 2. c4 {[%emt 0:00:00]} Nf6 {[%emt 0:00:00]} 3. Nc3 {[%emt 0:00:00]} e6 {[%emt 0:00:00]} 4. Nf3 {[%emt 0:00:00]} Bb4 {[%emt 0:00:00]} 5. Bd2 {[%emt 0:00:00]} O-O {[%emt 0:00:00]} 6. e3 {[%emt 0:00:00]} b6 {[%emt 0:00:00]} 7. Be2 {[%emt 0:06:55]} Bb7 {[%emt 0:00:00]} 8. O-O {[%emt 0:01:51]} d6 {[%emt 0:00:00]} 9. Nb1 {[%emt 0:08:01]} Bxd2 {[%emt 0:02:32]} 10. Nbxd2 {[%emt 0:00:26]} Nbd7 {[%emt 0:00:29]} 11. b4 {[%emt 0:03:36]} Qe7 {[%emt 0:04:39]} 12. Nb3 {[%emt 0:05:11]} Rac8 {[%emt 0:02:31]} 13. a3 {[%emt 0:05:11]} Ne4 {[%emt 0:03:20]} 14. Rc1 {[%emt 0:02:51]} c5 {[%emt 0:10:46]} 15. Nfd2 {[%emt 0:05:01]} Nxd2 {[%emt 0:12:11]} 16. Qxd2 {[%emt 0:01:13]} Nf6 {[%emt 0:06:26]} 17. f3 {[%emt 0:03:40]} e5 {[%emt 0:10:52]} 18. bxc5 {[%emt 0:05:37]} bxc5 {[%emt 0:07:32]} 19. d5 {[%emt 0:01:48]} f4 {[%emt 0:05:52]} 20. exf4 {[%emt 0:02:48]} exf4 {[%emt 0:00:36]} 21. Rfe1 {[%emt 0:01:26]} Nd7 {[%emt 0:06:07]} 22. Bd3 {[%emt 0:02:32]} Ne5 {[%emt 0:01:17]} 23. Qc2 {[%emt 0:01:31]} Qh4 {[%emt 0:01:36]} 24. Be4 {[%emt 0:05:49]} Rf6 {[%emt 0:03:19]} 25. Qf2 {[%emt 0:02:58]} Qxf2+ {[%emt 0:00:52]} 26. Kxf2 {[%emt 0:00:09]} Ba6 {[%emt 0:00:11]} 27. Nd2 {[%emt 0:01:22]} Rb8 {[%emt 0:00:20]} 28. Rb1 {[%emt 0:04:34]} Rff8 {[%emt 0:00:38]} 29. Rec1 {[%emt 0:06:52]} Rxb1 {[%emt 0:01:24]} 30. Rxb1 {[%emt 0:02:06]} Bxc4 {[%emt 0:00:53]} 31. Rb7 {[%emt 0:01:35]} a5 {[%emt 0:00:40]} 32. g3 {[%emt 0:02:11]} h6 {[%emt 0:01:41]} 33. Rb6 {[%emt 0:01:37]} Ba2 {[%emt 0:02:56]} 1/2-1/2

[Event "GER-ch Youth-ODJM 2022 B"]
[Site "Willingen"]
[Date "2022.06.09"]
[Round "7.4"]
[White "Visvikis, Kassandra"]
[Black "Kieselbach, Marvin"]
[Result "0-1"]
[ECO "C03"]
[WhiteElo "1626"]
[BlackElo "1662"]
[Annotator "NA RC COMBH"]
[PlyCount "164"]
[EventDate "2022.06.05"]
[EventType "swiss"]
[EventRounds "9"]
[EventCountry "GER"]
[SourceTitle "playchess.com"]
[Source "ChessBase"]
[SourceQuality "1"]
[TimeControl "40/4500+30:900+30"]

1. e4 {[%emt 0:00:00]} e6 {[%emt 0:00:00]} 2. d4 {[%emt 0:00:00]} d5 {[%emt 0:00:00]} 3. Nd2 {[%emt 0:00:00]} Be7 {[%emt 0:00:00]} 4. Ngf3 {[%emt 0:00:00]} Nf6 {[%emt 0:00:00]} 5. Bd3 {[%emt 0:00:00]} c5 {[%emt 0:00:00]} 6. e5 {[%emt 0:00:00]} Nfd7 {[%emt 0:00:00]} 7. c3 {[%emt 0:00:00]} Nc6 {[%emt 0:00:00]} 8. Qc2 {[%emt 0:08:39]} cxd4 {[%emt 0:00:00]} 9. cxd4 {[%emt 0:00:31]} Nb4 {[%emt 0:00:00]} 10. Qb1 {[%emt 0:03:03]} Nxd3+ {[%emt 0:00:00]} 11. Qxd3 {[%emt 0:00:05]} a5 {[%emt 0:00:00]} 12. O-O {[%emt 0:05:02]} b6 {[%emt 0:00:00]} 13. Re1 {[%emt 0:05:36]} Ba6 {[%emt 0:00:00]} 14. Qe3 {[%emt 0:01:20]} Rc8 {[%emt 0:00:00]} 15. Nf1 {[%emt 0:03:26]} Nb8 {[%emt 0:00:00]} 16. Bd2 {[%emt 0:06:45]} Nc6 {[%emt 0:01:57]} 17. a3 {[%emt 0:00:29]} a4 {[%emt 0:08:02]} 18. Rec1 {[%emt 0:13:11]} Bxf1 {[%emt 0:02:54]} 19. Kxf1 {[%emt 0:04:27]} b5 {[%emt 0:01:59]} 20. Rc2 {[%emt 0:08:21]} O-O {[%emt 0:03:06]} 21. Rac1 {[%emt 0:00:31]} Qb6 {[%emt 0:07:30]} 22. b4 {[%emt 0:04:45]} axb3 {[%emt 0:01:06]} 23. Qxb3 {[%emt 0:00:08]} Qa6 {[%emt 0:01:46]} 24. Kg1 {[%emt 0:05:15]} Na7 {[%emt 0:08:06]} 25. Bb4 {[%emt 0:03:18]} Bxb4 {[%emt 0:00:28]} 26. Qxb4 {[%emt 0:00:29]} Rc4 {[%emt 0:04:56]} 27. Rxc4 {[%emt 0:05:00]} bxc4 {[%emt 0:04:03]} 28. a4 {[%emt 0:01:15]} Nc6 {[%emt 0:01:30]} 29. Qb5 {[%emt 0:00:08]} Qxb5 {[%emt 0:02:49]} 30. axb5 {[%emt 0:00:04]} Na5 {[%emt 0:07:41]} 31. Nd2 {[%emt 0:02:00]} Rb8 {[%emt 0:03:02]} 32. Rb1 {[%emt 0:00:14]} c3 {[%emt 0:03:31]} 33. Nf1 {[%emt 0:00:05]} c2 {[%emt 0:07:15]} 34. Rc1 {[%emt 0:00:12]} Nb3 {[%emt 0:01:35]} 35. Rxc2 {[%emt 0:00:05]} Nxd4 {[%emt 0:00:13]} 36. Ra2 {[%emt 0:00:34]} g5 {[%emt 0:01:25]} 37. Rd2 {[%emt 0:01:54]} Nb3 {[%emt 0:02:17]} 38. Rb2 {[%emt 0:04:13]} Rxb5 {[%emt 0:00:14]} 39. Nd2 {[%emt 0:00:07]} Nd4 {[%emt 0:07:27]} 40. Rxb5 {[%emt 0:00:11]} Nxb5 {[%emt 0:00:08]} 41. g4 {[%emt 0:00:00]} Nd4 {[%emt 0:00:00]} 42. Kg2 {[%emt 0:00:00]} Kg7 {[%emt 0:00:00]} 43. Kg3 {[%emt 0:00:00]} Kg6 {[%emt 0:00:00]} 44. h4 {[%emt 0:00:00]} Ne2+ {[%emt 0:00:00]} 45. Kh3 {[%emt 0:00:49]} Nf4+ {[%emt 0:00:00]} 46. Kg3 {[%emt 0:00:10]} h6 {[%emt 0:04:36]} 47. hxg5 {[%emt 0:04:44]} hxg5 {[%emt 0:00:11]} 48. Nf3 {[%emt 0:00:56]} f6 {[%emt 0:07:31]} 49. exf6 {[%emt 0:04:32]} Kxf6 {[%emt 0:00:09]} 50. Nd2 {[%emt 0:01:01]} e5 {[%emt 0:02:30]} 51. f3 {[%emt 0:00:48]} Ke6 {[%emt 0:02:58]} 52. Kf2 {[%emt 0:00:44]} Kd6 {[%emt 0:00:42]} 53. Ke3 {[%emt 0:00:45]} Kc5 {[%emt 0:01:06]} 54. Nb3+ {[%emt 0:04:24]} Kb4 {[%emt 0:00:29]} 55. Nd2 {[%emt 0:00:54]} Kc3 {[%emt 0:01:54]} 56. Nb1+ {[%emt 0:00:27]} Kb2 {[%emt 0:01:32]} 57. Nd2 {[%emt 0:00:03]} Kc2 {[%emt 0:00:44]} 58. Nf1 {[%emt 0:00:55]} d4+ {[%emt 0:02:18]} 59. Ke4 {[%emt 0:00:16]} d3 {[%emt 0:00:23]} 60. Kxe5 {[%emt 0:00:05]} d2 {[%emt 0:01:35]} 61. Ne3+ {[%emt 0:01:19]} Kd3 {[%emt 0:00:22]} 62. Nd1 {[%emt 0:00:20]} Ke2 {[%emt 0:00:19]} 63. Nc3+ Kxf3 {[%emt 0:01:27]} 64. Kf5 {[%emt 0:02:46]} Nh3 {[%emt 0:00:14]} 65. Ke5 {[%emt 0:00:27]} Kf2 {[%emt 0:00:55]} 66. Ke4 {[%emt 0:01:23]} Ke1 {[%emt 0:00:19]} 67. Kf3 {[%emt 0:00:07]} d1=Q+ {[%emt 0:00:20]} 68. Nxd1 {[%emt 0:00:04]} Kxd1 {[%emt 0:00:08]} 69. Kg3 {[%emt 0:00:04]} Nf4 {[%emt 0:00:14]} 70. Kf2 {[%emt 0:00:08]} Kd2 {[%emt 0:00:10]} 71. Kf3 {[%emt 0:00:16]} Kd3 {[%emt 0:00:21]} 72. Kf2 {[%emt 0:00:29]} Ke4 {[%emt 0:00:12]} 73. Kg3 {[%emt 0:00:03]} Ke3 {[%emt 0:00:13]} 74. Kh2 {[%emt 0:00:08]} Kf3 {[%emt 0:00:08]} 75. Kh1 {[%emt 0:00:06]} Kxg4 {[%emt 0:00:10]} 76. Kh2 {[%emt 0:00:03]} Kf3 {[%emt 0:00:21]} 77. Kg1 {[%emt 0:00:03]} g4 {[%emt 0:00:20]} 78. Kh2 {[%emt 0:00:03]} g3+ {[%emt 0:01:18]} 79. Kh1 {[%emt 0:00:06]} g2+ {[%emt 0:00:19]} 80. Kg1 {[%emt 0:00:05]} Nh3+ {[%emt 0:00:21]} 81. Kh2 {[%emt 0:00:02]} g1=Q+ {[%emt 0:00:15]} 82. Kxh3 {[%emt 0:00:02]} Qh1# {[%emt 0:00:12]} 0-1